fUST/lending_fUST_20241114
["ID","MTS","AMOUNT","RATE_DAILY","PERIOD"]
[342157995,1731515450820,-500.0,0.00029863,4]
[342157996,1731515450829,-500.0,0.00029863,4]
[342157997,1731515450839,-500.0,0.00029863,4]
[342157998,1731515450848,-705.43,0.00029863,4]
[342157999,1731515450857,-254.79888656,0.00029863,4]
[342158000,1731515450932,-245.20111344,0.00029863,4]
[342158001,1731515450942,-927.46,0.00029863,4]
[342158002,1731515450951,-500.0,0.00029863,4]
[342158003,1731515450961,-1279.34,0.00029863,4]
[342158004,1731515450970,-763.71888656,0.00029863,4]
[342158005,1731515451301,-301.92569401,0.00027397,4]
[342158006,1731515451310,-342.1374861,0.00027397,4]
[342158007,1731515451330,-256.36171192,0.00027397,4]
[342158008,1731515451339,-500.0,0.00027397,4]
[342158009,1731515451350,-500.0,0.00027397,4]
[342158010,1731515451360,-92.23111344,0.00029863,4]
[342158011,1731515451370,-500.0,0.00029863,4]
[342158012,1731515451380,-1355.11,0.00029863,4]
[342158013,1731515451389,-1420.92771401,0.00029898,15]
[342158014,1731515451399,-168.234,0.000299,7]
[342158015,1731515451409,-200.0,0.0002997,27]
[342158016,1731515451419,-500.0,0.00029973,7]
[342158017,1731515451428,-313.32413467,0.00029978,2]
[342158018,1731515451438,-2400.34220184,0.00029978,2]
[342158019,1731515451447,-300.0,0.0003,2]
[342158020,1731515451457,-558.0,0.0003,2]
[342158021,1731515451466,-302.8788636,0.0003,2]
[342158022,1731515451476,-251.0,0.0003,2]
[342158023,1731515451486,-642.4,0.0003,2]
[342158024,1731515451502,-302.90913937,0.0003,2]
[342158025,1731515451512,-151.0,0.0003,120]
[342158026,1731515451521,-151.0,0.00030058,7]
[342158027,1731515451531,-151.0,0.00030058,7]
[342158028,1731515451543,-151.0,0.00030058,7]
[342158029,1731515451553,-151.0,0.00030058,7]
[342158030,1731515451563,-151.0,0.00030058,7]
[342158031,1731515451573,-151.0,0.00030058,7]
[342158032,1731515451583,-221.261189,0.00030063,7]
[342158033,1731515451592,-151.0,0.00030063,7]
[342158034,1731515451603,-151.0,0.00030063,7]
[342158035,1731515451614,-151.0,0.00030063,7]
[342158036,1731515451625,-151.0,0.00030063,7]
[342158037,1731515451636,-151.0,0.00030063,7]
[342158038,1731515451646,-151.0,0.00030063,7]
[342158039,1731515451656,-216.356084,0.00030068,7]
[342158040,1731515451666,-216.356084,0.00030068,7]
[342158041,1731515451676,-216.356084,0.00030068,7]
[342158042,1731515451686,-216.356084,0.00030068,7]
[342158043,1731515451695,-216.356084,0.00030068,7]
[342158044,1731515451705,-216.356084,0.00030068,7]
[342158045,1731515451715,-216.356084,0.00030068,7]
[342158046,1731515451725,-216.356084,0.00030068,7]
[342158047,1731515451735,-216.356084,0.00030068,7]
[342158048,1731515451748,-216.356084,0.00030068,7]
[342158049,1731515451762,-216.356084,0.00030068,7]
[342158050,1731515451772,-216.356084,0.00030068,7]
[342158051,1731515451782,-216.356084,0.00030068,7]
[342158052,1731515451792,-216.356084,0.00030068,7]
[342158053,1731515451802,-216.356084,0.00030068,7]
[342158054,1731515451812,-216.356084,0.00030068,7]
[342158055,1731515451822,-216.356084,0.00030068,7]
[342158056,1731515451832,-216.356084,0.00030068,7]
[342158057,1731515451841,-216.356084,0.00030068,7]
[342158058,1731515451851,-216.356076,0.00030068,7]
[342158059,1731515451861,-739.844141,0.00030068,7]
[342158060,1731515451870,-739.844141,0.00030068,7]
[342158061,1731515451880,-739.844141,0.00030068,7]
[342158062,1731515451889,-739.844141,0.00030068,7]
[342158063,1731515451898,-739.844141,0.00030068,7]
[342158064,1731515451908,-739.844141,0.00030068,7]
[342158065,1731515451917,-739.844141,0.00030068,7]
[342158066,1731515451927,-739.844141,0.00030068,7]
[342158067,1731515451937,-739.844141,0.00030068,7]
[342158068,1731515451947,-739.844141,0.00030068,7]
[342158069,1731515451956,-739.844141,0.00030068,7]
[342158070,1731515451966,-739.844141,0.00030068,7]
[342158071,1731515451975,-739.844141,0.00030068,7]
[342158072,1731515451984,-739.844141,0.00030068,7]
[342158073,1731515451993,-739.844141,0.00030068,7]
[342158074,1731515452008,-739.84414319,0.00030068,7]
[342158075,1731515452018,-151.0,0.00030068,7]
[342158076,1731515452027,-151.0,0.00030068,7]
[342158077,1731515452037,-151.0,0.00030068,7]
[342158078,1731515452047,-151.0,0.00030068,7]
[342158079,1731515452056,-151.0,0.00030068,7]
[342158080,1731515452067,-151.0,0.00030068,7]
[342158081,1731515452077,-151.0,0.00030068,7]
[342158082,1731515452087,-151.0,0.00030068,7]
[342158083,1731515452097,-151.0,0.00030068,7]
[342158084,1731515452108,-151.0,0.00030068,7]
[342158085,1731515452117,-151.0,0.00030068,7]
[342158086,1731515452127,-164.094468,0.00030068,7]
[342158087,1731515452137,-151.0,0.00030068,7]
[342158088,1731515452147,-151.0,0.00030068,7]
[342158089,1731515452157,-151.0,0.00030068,7]
[342158090,1731515452166,-151.0,0.00030068,7]
[342158091,1731515452175,-151.0,0.00030068,7]
[342158092,1731515452185,-151.0,0.00030068,7]
[342158093,1731515452194,-151.0,0.00030068,7]
[342158094,1731515452203,-151.0,0.00030068,7]
[342158095,1731515452212,-229.602517,0.00030068,7]
[342158096,1731515452222,-151.0,0.00030068,7]
[342158097,1731515452231,-151.0,0.00030068,7]
[342158098,1731515452241,-151.0,0.00030068,7]
[342158099,1731515452257,-151.0,0.00030068,7]
[342158100,1731515452266,-151.0,0.00030068,7]
[342158101,1731515452275,-151.0,0.00030068,7]
[342158102,1731515452286,-162.461492,0.00030068,7]
[342158103,1731515452296,-151.0,0.00030068,7]
[342158104,1731515452306,-151.0,0.00030068,7]
[342158105,1731515452315,-151.0,0.00030068,7]
[342158106,1731515452325,-151.0,0.00030068,7]
[342158107,1731515452335,-151.0,0.00030068,7]
[342158108,1731515452344,-151.0,0.00030068,7]
[342158109,1731515452353,-151.0,0.00030068,7]
[342158110,1731515452362,-151.0,0.00030068,7]
[342158111,1731515452372,-151.0,0.00030068,7]
[342158112,1731515452381,-151.0,0.00030068,7]
[342158113,1731515452391,-151.0,0.00030068,7]
[342158114,1731515452400,-151.0,0.00030068,7]
[342158115,1731515452410,-151.0,0.00030068,7]
[342158116,1731515452420,-151.0,0.00030068,7]
[342158117,1731515452429,-151.0,0.00030068,7]
[342158118,1731515452439,-168.592306,0.00030068,7]
[342158119,1731515452448,-153.872684,0.00030068,7]
[342158120,1731515452458,-151.0,0.00030068,7]
[342158121,1731515452467,-151.0,0.00030068,7]
[342158122,1731515452476,-151.0,0.00030068,7]
[342158123,1731515452486,-151.0,0.00030068,7]
[342158124,1731515452497,-151.0,0.00030068,7]
[342158125,1731515452506,-151.0,0.00030068,7]
[342158126,1731515452516,-151.0,0.00030068,7]
[342158127,1731515452527,-151.0,0.00030068,7]
[342158128,1731515452538,-151.0,0.00030068,7]
[342158129,1731515452547,-269.674956,0.00030068,7]
[342158130,1731515452557,-151.0,0.00030068,7]
[342158131,1731515452567,-151.808944,0.00030068,7]
[342158132,1731515452577,-151.0,0.00030068,7]
[342158133,1731515452586,-151.0,0.00030068,7]
[342158134,1731515452596,-151.0,0.00030068,3]
[342158135,1731515452607,-151.0,0.00030068,3]
[342158136,1731515452617,-151.0,0.00030068,7]
[342158137,1731515452627,-151.0,0.00030068,7]
[342158138,1731515452637,-283.574982,0.00030068,7]
[342158139,1731515452646,-151.0,0.00030068,7]
[342158140,1731515452655,-151.0,0.00030068,7]
[342158141,1731515452665,-270.564934,0.00030068,7]
[342158142,1731515452674,-270.564934,0.00030068,7]
[342158143,1731515452683,-270.564934,0.00030068,7]
[342158144,1731515452692,-270.564934,0.00030068,7]
[342158145,1731515452702,-270.564934,0.00030068,7]
[342158146,1731515452711,-270.564934,0.00030068,7]
[342158147,1731515452720,-270.564934,0.00030068,7]
[342158148,1731515452730,-270.564934,0.00030068,7]
[342158149,1731515452739,-270.564934,0.00030068,7]
[342158150,1731515452750,-270.564934,0.00030068,7]
[342158151,1731515452760,-270.564934,0.00030068,7]
[342158152,1731515452769,-270.564934,0.00030068,7]
[342158153,1731515452778,-270.564934,0.00030068,7]
[342158154,1731515452788,-270.564934,0.00030068,7]
[342158155,1731515452797,-270.564934,0.00030068,7]
[342158156,1731515452806,-270.564934,0.00030068,7]
[342158157,1731515452816,-270.564934,0.00030068,7]
[342158158,1731515452825,-270.564934,0.00030068,7]
[342158159,1731515452835,-270.564934,0.00030068,7]
[342158160,1731515452844,-270.564944,0.00030068,7]
[342158161,1731515452854,-267.006595,0.00030068,7]
[342158162,1731515452863,-207.384202,0.00030068,7]
[342158163,1731515452873,-207.384202,0.00030068,7]
[342158164,1731515452883,-207.384202,0.00030068,7]
[342158165,1731515452893,-207.384202,0.00030068,7]
[342158166,1731515452902,-70.88775094,0.00030068,7]
[342158167,1731515452923,-500.0,0.00027671,4]
[342158168,1731515452933,-136.49645106,0.00030068,7]
[342158169,1731515452942,-207.384202,0.00030068,7]
[342158170,1731515452951,-207.384202,0.00030068,7]
[342158171,1731515452960,-207.384202,0.00030068,7]
[342158172,1731515452970,-207.384202,0.00030068,7]
[342158173,1731515452979,-151.0,0.00030068,7]
[342158174,1731515452989,-207.384202,0.00030068,7]
[342158175,1731515453001,-151.0,0.00030068,7]
[342158176,1731515453011,-207.384202,0.00030068,7]
[342158177,1731515453021,-156.102638,0.00030068,7]
[342158178,1731515453030,-207.384202,0.00030068,7]
[342158179,1731515453040,-207.384202,0.00030068,7]
[342158180,1731515453049,-207.384202,0.00030068,7]
[342158181,1731515453058,-207.384202,0.00030068,7]
[342158182,1731515453068,-156.25889093,0.00030068,7]
[342158183,1731515453079,-51.12531107,0.00030068,7]
[342158184,1731515453089,-207.384202,0.00030068,7]
[342158185,1731515453098,-207.384202,0.00030068,7]
[342158186,1731515453108,-207.384202,0.00030068,7]
[342158187,1731515453117,-207.384204,0.00030068,7]
[342158188,1731515453126,-506.264862,0.00030068,7]
[342158189,1731515453136,-506.264862,0.00030068,7]
[342158190,1731515453146,-506.264862,0.00030068,7]
[342158191,1731515453155,-506.264862,0.00030068,7]
[342158192,1731515453165,-506.264862,0.00030068,7]
[342158193,1731515453175,-506.264862,0.00030068,7]
[342158194,1731515453184,-506.264862,0.00030068,7]
[342158195,1731515453194,-506.264862,0.00030068,7]
[342158196,1731515453203,-506.264862,0.00030068,7]
[342158197,1731515453213,-506.264862,0.00030068,7]
[342158198,1731515453309,-506.264862,0.00030068,7]
[342158199,1731515453320,-506.264862,0.00030068,7]
[342158200,1731515453330,-506.264862,0.00030068,7]
[342158201,1731515453340,-506.264862,0.00030068,7]
[342158202,1731515453350,-506.264862,0.00030068,7]
[342158203,1731515453359,-506.264862,0.00030068,7]
[342158204,1731515453368,-506.264862,0.00030068,7]
[342158205,1731515453378,-506.264862,0.00030068,7]
[342158206,1731515453387,-506.264862,0.00030068,7]
[342158207,1731515453396,-506.26487,0.00030068,7]
[342158208,1731515453406,-363.153209,0.00030068,2]
[342158209,1731515453415,-363.153209,0.00030068,2]
[342158210,1731515453425,-363.153209,0.00030068,2]
[342158211,1731515453434,-363.153209,0.00030068,2]
[342158212,1731515453444,-363.153209,0.00030068,2]
[342158213,1731515453454,-363.153209,0.00030068,2]
[342158214,1731515453463,-363.153209,0.00030068,2]
[342158215,1731515453473,-363.153209,0.00030068,2]
[342158216,1731515453484,-363.153209,0.00030068,2]
[342158217,1731515453494,-363.153209,0.00030068,2]
[342158218,1731515453506,-363.153209,0.00030068,2]
[342158219,1731515453515,-363.153209,0.00030068,2]
[342158220,1731515453527,-363.153209,0.00030068,2]
[342158221,1731515453538,-363.153209,0.00030068,2]
[342158222,1731515453548,-363.153209,0.00030068,2]
[342158223,1731515453558,-363.153209,0.00030068,2]
[342158224,1731515453567,-363.153209,0.00030068,2]
[342158225,1731515453578,-363.153209,0.00030068,2]
[342158226,1731515453588,-363.153209,0.00030068,2]
[342158227,1731515453598,-363.1532,0.00030068,2]
[342158228,1731515453609,-151.0,0.00030069,7]
[342158229,1731515453621,-151.0,0.00030069,7]
[342158230,1731515453630,-151.0,0.00030069,7]
[342158231,1731515453640,-151.0,0.00030069,7]
[342158232,1731515453650,-151.0,0.00030069,7]
[342158233,1731515453660,-151.0,0.00030069,7]
[342158234,1731515453670,-151.0,0.00030069,7]
[342158235,1731515453679,-225.543244,0.00030069,7]
[342158236,1731515453689,-225.543244,0.00030069,7]
[342158237,1731515453699,-225.543244,0.00030069,7]
[342158238,1731515453708,-225.543244,0.00030069,7]
[342158239,1731515453718,-225.543244,0.00030069,7]
[342158240,1731515453728,-225.543244,0.00030069,7]
[342158241,1731515453738,-225.543244,0.00030069,7]
[342158242,1731515453751,-225.543244,0.00030069,7]
[342158243,1731515453760,-225.543244,0.00030069,7]
[342158244,1731515453770,-225.543244,0.00030069,7]
[342158245,1731515453779,-225.543244,0.00030069,7]
[342158246,1731515453789,-225.543244,0.00030069,7]
[342158247,1731515453799,-225.543244,0.00030069,7]
[342158248,1731515453809,-225.543244,0.00030069,7]
[342158249,1731515453818,-225.543244,0.00030069,7]
[342158250,1731515453828,-225.543244,0.00030069,7]
[342158251,1731515453838,-225.543244,0.00030069,7]
[342158252,1731515453847,-225.543244,0.00030069,7]
[342158253,1731515453857,-225.543244,0.00030069,7]
[342158254,1731515453866,-225.543245,0.00030069,7]
[342158255,1731515453876,-151.0,0.00030069,7]
[342158256,1731515453885,-151.0,0.00030069,7]
[342158257,1731515453895,-151.0,0.00030069,7]
[342158258,1731515453905,-151.0,0.00030069,7]
[342158259,1731515453915,-151.0,0.00030069,7]
[342158260,1731515453924,-151.0,0.00030069,7]
[342158261,1731515453934,-151.0,0.00030069,7]
[342158262,1731515453943,-151.0,0.00030069,7]
[342158263,1731515453952,-151.0,0.00030069,7]
[342158264,1731515453962,-336.139558,0.00030069,7]
[342158265,1731515453972,-336.139558,0.00030069,7]
[342158266,1731515453981,-336.139558,0.00030069,7]
[342158267,1731515453991,-336.139558,0.00030069,7]
[342158268,1731515454004,-336.139558,0.00030069,7]
[342158269,1731515454015,-336.139558,0.00030069,7]
[342158270,1731515454025,-336.139558,0.00030069,7]
[342158271,1731515454034,-336.139558,0.00030069,7]
[342158272,1731515454043,-336.139558,0.00030069,7]
[342158273,1731515454053,-336.139558,0.00030069,7]
[342158274,1731515454064,-336.139558,0.00030069,7]
[342158275,1731515454073,-336.139558,0.00030069,7]
[342158276,1731515454083,-336.139558,0.00030069,7]
[342158277,1731515454092,-336.139558,0.00030069,7]
[342158278,1731515454101,-336.139558,0.00030069,7]
[342158279,1731515454111,-336.139558,0.00030069,7]
[342158280,1731515454120,-336.139558,0.00030069,7]
[342158281,1731515454130,-336.139558,0.00030069,7]
[342158282,1731515454140,-336.139558,0.00030069,7]
[342158283,1731515454149,-336.139561,0.00030069,7]
[342158284,1731515454159,-151.0,0.00030078,7]
[342158285,1731515454168,-151.0,0.00030078,7]
[342158286,1731515454178,-151.0,0.00030078,7]
[342158287,1731515454187,-151.0,0.00030078,7]
[342158288,1731515454197,-151.0,0.00030078,7]
[342158289,1731515454207,-151.0,0.00030078,7]
[342158290,1731515454216,-151.0,0.00030078,7]
[342158291,1731515454226,-151.0,0.00030078,7]
[342158292,1731515454235,-151.0,0.00030078,7]
[342158293,1731515454245,-151.0,0.00030078,7]
[342158294,1731515454259,-151.0,0.00030078,7]
[342158295,1731515454269,-151.0,0.00030078,7]
[342158296,1731515454278,-151.0,0.00030078,7]
[342158297,1731515454288,-151.0,0.00030078,7]
[342158298,1731515454297,-274.539706,0.00030078,7]
[342158299,1731515454307,-151.0,0.00030078,7]
[342158300,1731515454316,-151.0,0.00030078,7]
[342158301,1731515454326,-151.0,0.00030078,7]
[342158302,1731515454335,-151.0,0.00030078,7]
[342158303,1731515454345,-151.0,0.00030078,7]
[342158304,1731515454354,-276.53058,0.00030078,7]
[342158305,1731515454364,-151.0,0.00030078,7]
[342158306,1731515454373,-151.0,0.00030078,7]
[342158307,1731515454383,-151.0,0.00030078,7]
[342158308,1731515454391,-151.0,0.00030078,7]
[342158309,1731515454401,-151.0,0.00030078,7]
[342158310,1731515454411,-151.0,0.00030078,7]
[342158311,1731515454419,-151.0,0.00030078,7]
[342158312,1731515454429,-151.0,0.00030078,7]
[342158313,1731515454439,-151.0,0.00030078,7]
[342158314,1731515454448,-151.0,0.00030078,7]
[342158315,1731515454458,-151.0,0.00030078,7]
[342158316,1731515454468,-151.0,0.00030078,7]
[342158317,1731515454477,-151.0,0.00030078,7]
[342158318,1731515454487,-151.0,0.00030078,7]
[342158319,1731515454500,-179.570764,0.00030078,7]
[342158320,1731515454509,-151.0,0.00030078,7]
[342158321,1731515454519,-151.0,0.00030078,7]
[342158322,1731515454532,-151.0,0.00030078,7]
[342158323,1731515454542,-151.0,0.00030078,7]
[342158324,1731515454551,-151.0,0.00030078,7]
[342158325,1731515454561,-151.0,0.00030078,7]
[342158326,1731515454573,-151.0,0.00030078,7]
[342158327,1731515454583,-236.954806,0.00030078,7]
[342158328,1731515454593,-151.0,0.00030078,7]
[342158329,1731515454602,-298.755901,0.00030088,2]
[342158330,1731515454616,-4561.81615734,0.000301,2]
[342158331,1731515454626,-4561.81615731,0.000301,2]
[342158332,1731515454636,-4561.81615731,0.000301,2]
[342158333,1731515454646,-4561.81615731,0.000301,2]
[342158334,1731515454656,-1481.20393849,0.000301,2]
[342158335,1731515454666,-1481.20393846,0.000301,2]
[342158336,1731515454675,-1481.20393846,0.000301,2]
[342158337,1731515454686,-1481.20393846,0.000301,2]
[342158338,1731515454695,-29572.88827579,0.00030112,10]
[342158339,1731515454714,-500.0,0.00027945,4]
[342158340,1731515454724,-1186.29423397,0.00030112,10]
[342158341,1731515454736,-516.17145727,0.00030112,10]
[342158342,1731515454750,-29663.44324251,0.00030112,10]
[342158343,1731515454762,-20412.84167236,0.00030112,10]
[342158344,1731515454774,-2181.44678378,0.00030112,10]
[342158345,1731515455137,-1169.27083333,0.0002,2]
[342158346,1731515455147,-500.0,0.00027397,4]
[342158347,1731515455157,-2021.81332,0.00028014,15]
[342158348,1731515455253,-500.0,0.00028219,4]
[342158349,1731515455263,-500.0,0.00028493,4]
[342158350,1731515455272,-19598.01336208,0.00030112,10]
[342158351,1731515455284,-86543.40734416,0.00030112,10]
[342158353,1731515594596,961.25043601,0.00026137,120]
[342158358,1731515745276,164.456652,0.00013973,2]
[342158363,1731516034639,200.0,0.00027,120]
[342158374,1731516135325,9036.4309986,0.0001,2]
[342158379,1731516303360,1021.0,0.0002,30]
[342158380,1731516381612,209.64366806,0.00026137,120]
[342158381,1731516462957,165.818598,0.00013973,2]
[342158421,1731516632250,-923.0354602,0.00017475,2]
[342158469,1731516634323,-806.33164888,0.00017475,2]
[342158500,1731516638401,-3270.63289092,0.00017475,2]
[342158502,1731516638411,-781.55007964,0.00017652,2]
[342158504,1731516638421,-2467.9316136,0.00017831,2]
[342158506,1731516638430,-838.38943,0.00017863,2]
[342158508,1731516638439,-300.0,0.00018044,2]
[342158509,1731516638449,-300.0,0.00018044,2]
[342158510,1731516638460,-1251.4116666,0.00018045,2]
[342158511,1731516638469,-165.272139,0.00018323,2]
[342158512,1731516638479,-165.272139,0.00018346,2]
[342158513,1731516638488,-165.272139,0.00018369,2]
[342158514,1731516638498,-165.272139,0.00018392,2]
[342158515,1731516638507,-165.272139,0.00018415,2]
[342158516,1731516638516,-707.05198307,0.00018473,2]
[342158517,1731516638528,-73.70978013,0.00018473,2]
[342158518,1731516638538,-838.38943,0.00018548,2]
[342158519,1731516638547,-170.827428,0.00018578,2]
[342158520,1731516638557,-263.57336187,0.00019053,2]
[342158521,1731516638569,-24636.42663813,0.00019053,2]
[342158522,1731516638579,-180.41064,0.00019178,2]
[342158523,1731516638588,-838.38943,0.00019232,2]
[342158524,1731516638598,-420.0,0.00019688,2]
[342158525,1731516638607,-420.0,0.00019849,2]
[342158526,1731516638618,-226.428792,0.000199,2]
[342158527,1731516638627,-1169.27083333,0.0002,2]
[342158528,1731516638636,-500.0,0.00020871,2]
[342158529,1731516638646,-500.0,0.00020871,2]
[342158530,1731516638667,-500.0,0.00020871,2]
[342158531,1731516638677,-506.15118949,0.00020871,2]
[342158532,1731516638687,-502.57660052,0.0002088,2]
[342158533,1731516638698,-501.48286692,0.00021033,2]
[342158534,1731516638712,-526.43375223,0.00021033,2]
[342158535,1731516638722,-500.0,0.00021033,2]
[342158536,1731516638732,-500.0,0.00021419,2]
[342158537,1731516638743,-500.0,0.00021419,2]
[342158538,1731516638753,-1000.23869116,0.00021581,2]
[342158539,1731516638763,-323.05032301,0.00021773,2]
[342158540,1731516638773,-500.60446037,0.00021773,2]
[342158541,1731516638783,-500.0,0.00021773,2]
[342158542,1731516638793,-190.54558812,0.00021799,2]
[342158543,1731516638803,-182.36110371,0.00021799,2]
[342158544,1731516638812,-500.0,0.00021799,2]
[342158545,1731516638822,-158.48457532,0.00021799,2]
[342158546,1731516638831,-186.35343669,0.00021799,2]
[342158547,1731516638841,-103712.77935792,0.000218,2]
[342158548,1731516638851,-194.01080176,0.000218,2]
[342158549,1731516638861,-902.55,0.000219,2]
[342158550,1731516638871,-500.0,0.00022321,2]
[342158551,1731516638881,-1000.23005291,0.00022449,2]
[342158552,1731516638891,-287.2995,0.00023279,2]
[342158553,1731516638901,-1042.206,0.00024395,2]
[342158554,1731516638910,-279.6028043,0.00024559,2]
[342158555,1731516638919,-203.7669865,0.00024559,2]
[342158556,1731516638930,-250.0,0.00024559,2]
[342158557,1731516638940,-162.10589593,0.00024658,2]
[342158558,1731516638955,-630.77242841,0.00024658,2]
[342158559,1731516638966,-282.706,0.00024691,7]
[342158560,1731516638975,-7584.55432279,0.00024986,2]
[342158561,1731516638985,-300.0,0.00025,2]
[342158562,1731516638995,-270.2,0.00025,2]
[342158563,1731516639005,-3206.303,0.00025588,2]
[342158564,1731516639014,-338.6,0.000258,2]
[342158565,1731516639025,-530.0,0.00025906,2]
[342158566,1731516639038,-2393.0,0.00025906,2]
[342158567,1731516639047,-1117.0,0.00025906,2]
[342158568,1731516639058,-300.0,0.00026,2]
[342158569,1731516639067,-178.77401163,0.00026085,2]
[342158570,1731516639077,-500.62584288,0.00026685,7]
[342158571,1731516639091,-300.0,0.000268,2]
[342158572,1731516639101,-300.0,0.00027,2]
[342158573,1731516639112,-160.212,0.0002719,10]
[342158574,1731516639123,-6000.0,0.00027297,2]
[342158575,1731516639134,-1000.0,0.00027297,2]
[342158576,1731516639144,-500.0,0.00027373,2]
[342158577,1731516639153,-500.72220708,0.00027373,2]
[342158578,1731516639163,-501.60172901,0.00027373,2]
[342158579,1731516639179,-500.0,0.00027373,2]
[342158580,1731516639189,-324.10559116,0.00027396,2]
[342158581,1731516639199,-296.80609936,0.00027396,2]
[342158582,1731516639210,-500.0,0.00027397,4]
[342158583,1731516639219,-500.0,0.00027397,4]
[342158584,1731516639229,-500.0,0.00027397,4]
[342158585,1731516639238,-518.80324458,0.00027397,4]
[342158586,1731516639248,-500.0,0.00027397,4]
[342158587,1731516639258,-500.0,0.00027397,4]
[342158588,1731516639267,-500.0,0.00027397,4]
[342158589,1731516639276,-500.0,0.00027397,4]
[342158590,1731516639287,-500.0,0.00027397,4]
[342158591,1731516639295,-500.0,0.00027397,4]
[342158592,1731516639305,-500.0,0.00027397,4]
[342158593,1731516639315,-500.0,0.00027397,4]
[342158594,1731516639324,-502.09336249,0.00027397,4]
[342158595,1731516639333,-418.39695709,0.00027397,4]
[342158596,1731516639343,-500.0,0.00027397,4]
[342158597,1731516639352,-500.0,0.00027397,4]
[342158598,1731516639361,-500.0,0.00027397,4]
[342158599,1731516639370,-500.0,0.00027397,4]
[342158600,1731516639380,-500.0,0.00027397,4]
[342158601,1731516639389,-500.0,0.00027397,4]
[342158602,1731516639399,-500.0,0.00027397,4]
[342158603,1731516639409,-642.59252591,0.00027397,4]
[342158604,1731516639418,-500.0,0.00027397,4]
[342158605,1731516639428,-500.0,0.00027397,4]
[342158606,1731516639437,-500.0,0.00027397,4]
[342158607,1731516639447,-500.0,0.00027397,4]
[342158608,1731516639458,-195.69420986,0.00027397,4]
[342158609,1731516639468,-500.0,0.00027397,4]
[342158610,1731516639477,-500.0,0.00027397,4]
[342158611,1731516639487,-504.64201871,0.00027397,4]
[342158612,1731516639496,-563.89995865,0.00027397,4]
[342158613,1731516639506,-500.0,0.00027397,4]
[342158614,1731516639515,-500.0,0.00027397,4]
[342158615,1731516639524,-502.92649374,0.00027397,4]
[342158616,1731516639534,-500.0,0.00027397,4]
[342158617,1731516639543,-500.0,0.00027397,4]
[342158618,1731516639553,-500.0,0.00027397,4]
[342158619,1731516639562,-500.0,0.00027397,4]
[342158620,1731516639571,-500.0,0.00027397,4]
[342158621,1731516639581,-500.0,0.00027397,4]
[342158622,1731516639591,-500.0,0.00027397,4]
[342158623,1731516639600,-500.0,0.00027397,4]
[342158624,1731516639610,-500.0,0.00027397,4]
[342158625,1731516639620,-500.0,0.00027397,4]
[342158626,1731516639629,-554.36887682,0.00027397,4]
[342158627,1731516639639,-332.9390288,0.00027397,4]
[342158628,1731516639648,-500.0,0.00027397,4]
[342158629,1731516639657,-500.0,0.00027397,4]
[342158630,1731516639667,-417.35145022,0.00027397,4]
[342158631,1731516639676,-502.75684063,0.00027397,4]
[342158632,1731516639685,-500.0,0.00027397,4]
[342158634,1731516639695,-500.0,0.00027397,4]
[342158635,1731516639707,-500.0,0.00027397,4]
[342158636,1731516639716,-500.0,0.00027397,4]
[342158637,1731516639726,-500.0,0.00027397,4]
[342158638,1731516639735,-500.0,0.00027397,4]